[Event "58th Akiba Rubinstein B 2022"]
[Site "Polanica-Zdroj"]
[Date "2022.08.13"]
[Round "1.14"]
[White "Nowak, Roksana"]
[Black "Szuber, Dawid"]
[Result "0-1"]
[ECO "B32"]
[WhiteElo "1779"]
[BlackElo "1484"]
[Annotator "NA RC COMBH"]
[PlyCount "76"]
[EventDate "2022.08.13"]
[EventCountry "POL"]
[SourceTitle "playchess.com"]
[Source "ChessBase"]
[SourceQuality "1"]
[TimeControl "40/5400+30:1800+30"]

1. e4 {[%emt 0:00:03]} c5 {[%emt 0:00:04]} 2. Nf3 {[%emt 0:00:06]} Nc6 {[%emt 0:00:06]} 3. d4 {[%emt 0:00:05]} cxd4 {[%emt 0:00:02]} 4. Nxd4 {[%emt 0:00:08]} e5 {[%emt 0:00:09]} 5. Nb5 {[%emt 0:01:07]} a6 {[%emt 0:00:33]} 6. Nd6+ {[%emt 0:02:17]} Bxd6 {[%emt 0:00:11]} 7. Qxd6 {[%emt 0:00:04]} Qe7 {[%emt 0:00:06]} 8. Qd3 {[%emt 0:01:13]} d6 {[%emt 0:00:29]} 9. Nc3 {[%emt 0:00:27]} Nf6 {[%emt 0:00:15]} 10. Bg5 {[%emt 0:00:29]} Be6 {[%emt 0:01:11]} 11. a3 {[%emt 0:03:13]} Rd8 {[%emt 0:01:05]} 12. Be2 {[%emt 0:04:43]} h6 {[%emt 0:01:43]} 13. Bxf6 {[%emt 0:00:57]} Qxf6 {[%emt 0:02:31]} 14. Nd5 {[%emt 0:03:29]} Bxd5 {[%emt 0:01:27]} 15. exd5 {[%emt 0:00:33]} Nd4 {[%emt 0:02:30]} 16. O-O {[%emt 0:03:38]} Nxe2+ {[%emt 0:02:00]} 17. Qxe2 {[%emt 0:00:03]} O-O {[%emt 0:00:18]} 18. c3 {[%emt 0:06:49]} Rc8 {[%emt 0:02:30]} 19. Rad1 {[%emt 0:02:38]} Qg5 {[%emt 0:02:20]} 20. Rd3 {[%emt 0:16:13]} f5 {[%emt 0:02:18]} 21. f4 {[%emt 0:06:16]} Qf6 {[%emt 0:00:25]} 22. fxe5 {[%emt 0:00:29]} dxe5 {[%emt 0:00:01]} 23. Kh1 {[%emt 0:08:17]} Qd6 {[%emt 0:09:48]} 24. Qh5 {[%emt 0:08:33]} Rc5 {[%emt 0:04:54]} 25. Rfd1 {[%emt 0:03:27]} b5 {[%emt 0:12:28]} 26. h3 {[%emt 0:06:52]} Rc7 {[%emt 0:19:46]} 27. Rg3 {[%emt 0:02:03]} Kh7 {[%emt 0:02:22]} 28. Rf3 {[%emt 0:02:06]} e4 {[%emt 0:08:02]} 29. Re3 {[%emt 0:01:26]} Rc5 {[%emt 0:02:36]} 30. Ree1 {[%emt 0:07:24]} Rxd5 {[%emt 0:02:21]} 31. Rxd5 {[%emt 0:00:06]} Qxd5 {[%emt 0:00:04]} 32. Rd1 {[%emt 0:00:21]} Qe6 {[%emt 0:01:45]} 33. Rd4 {[%emt 0:00:59]} f4 {[%emt 0:09:28]} 34. Qe2 {[%emt 0:03:23]} f3 {[%emt 0:02:43]} 35. gxf3 {[%emt 0:05:38]} Qxh3+ {[%emt 0:00:38]} 36. Kg1 {[%emt 0:00:14]} Qg3+ {[%emt 0:01:15]} 37. Qg2 {[%emt 0:01:11]} Qe1+ {[%emt 0:01:22]} 38. Kh2 {[%emt 0:00:07]} Rxf3 {[%emt 0:01:45]} 0-1

[Event "58th Akiba Rubinstein B 2022"]
[Site "Polanica-Zdroj"]
[Date "2022.08.13"]
[Round "1.15"]
[White "Oglaza, Dawid"]
[Black "Grzadka, Artur"]
[Result "1-0"]
[ECO "B15"]
[WhiteElo "1558"]
[BlackElo "1720"]
[Annotator "NA RC COMBH"]
[PlyCount "81"]
[EventDate "2022.08.13"]
[EventCountry "POL"]
[SourceTitle "playchess.com"]
[Source "ChessBase"]
[SourceQuality "1"]
[TimeControl "40/5400+30:1800+30"]

1. e4 {[%emt 0:00:04]} c6 {[%emt 0:00:05]} 2. d4 {[%emt 0:00:07]} d5 {[%emt 0:00:06]} 3. Nc3 {[%emt 0:00:04]} dxe4 {[%emt 0:00:05]} 4. Nxe4 {[%emt 0:00:07]} Nf6 {[%emt 0:00:05]} 5. Nxf6+ {[%emt 0:00:07]} exf6 {[%emt 0:00:01]} 6. Be3 {[%emt 0:00:15]} Bd6 {[%emt 0:00:10]} 7. Bd3 {[%emt 0:00:23]} O-O {[%emt 0:01:32]} 8. Ne2 {[%emt 0:00:11]} Re8 {[%emt 0:03:43]} 9. O-O {[%emt 0:00:55]} Nd7 {[%emt 0:09:55]} 10. Qd2 {[%emt 0:02:34]} Nf8 {[%emt 0:00:36]} 11. c4 {[%emt 0:00:31]} Bc7 {[%emt 0:01:45]} 12. Ng3 Qd6 {[%emt 0:03:46]} 13. Rfe1 {[%emt 0:08:18]} h5 {[%emt 0:08:49]} 14. f4 {[%emt 0:11:33]} g6 {[%emt 0:08:31]} 15. Ne4 {[%emt 0:06:44]} Qd8 {[%emt 0:01:34]} 16. Qc3 {[%emt 0:07:51]} f5 {[%emt 0:08:21]} 17. Nd2 {[%emt 0:06:00]} Ne6 {[%emt 0:09:46]} 18. g3 {[%emt 0:01:10]} Rb8 {[%emt 0:05:00]} 19. a4 {[%emt 0:02:09]} b6 {[%emt 0:11:52]} 20. Nf3 {[%emt 0:02:22]} a5 {[%emt 0:02:02]} 21. Rad1 {[%emt 0:02:30]} Bd6 {[%emt 0:00:33]} 22. c5 {[%emt 0:02:12]} Bf8 {[%emt 0:00:18]} 23. Ne5 {[%emt 0:01:14]} Bb7 {[%emt 0:01:37]} 24. Bc4 {[%emt 0:02:05]} Qc8 {[%emt 0:06:49]} 25. Bf2 {[%emt 0:10:11]} Ba8 {[%emt 0:05:27]} 26. Nxg6 {[%emt 0:06:06]} fxg6 {[%emt 0:00:05]} 27. Rxe6 {[%emt 0:00:15]} Rxe6 {[%emt 0:00:56]} 28. Re1 {[%emt 0:00:03]} Kh7 {[%emt 0:00:40]} 29. Bxe6 {[%emt 0:01:54]} Qd8 {[%emt 0:00:18]} 30. b3 {[%emt 0:07:46]} bxc5 {[%emt 0:01:20]} 31. dxc5 {[%emt 0:01:56]} Bg7 {[%emt 0:00:04]} 32. Qc2 {[%emt 0:02:21]} Qf6 {[%emt 0:01:12]} 33. Bc4 {[%emt 0:00:50]} Rd8 {[%emt 0:02:25]} 34. Rd1 {[%emt 0:01:58]} Re8 {[%emt 0:01:09]} 35. Qd2 {[%emt 0:00:41]} Qc3 {[%emt 0:02:22]} 36. Qd7 {[%emt 0:05:56]} Re4 {[%emt 0:01:42]} 37. Bd3 {[%emt 0:02:54]} Rb4 {[%emt 0:01:46]} 38. Bc4 Rb7 {[%emt 0:00:27]} 39. Qd8 {[%emt 0:01:28]} Qc2 {[%emt 0:00:43]} 40. Rf1 {[%emt 0:00:00]} Ra7 {[%emt 0:00:00]} 41. Qb8 {[%emt 0:02:21]} 1-0

[Event "58th Akiba Rubinstein B 2022"]
[Site "Polanica-Zdroj"]
[Date "2022.08.14"]
[Round "2.1"]
[White "Chmiel, Marcin"]
[Black "Jankowski, Aleksander"]
[Result "1-0"]
[ECO "A28"]
[WhiteElo "2192"]
[BlackElo "1715"]
[Annotator "TA"]
[PlyCount "67"]
[EventDate "2022.08.13"]
[EventCountry "POL"]
[SourceTitle "playchess.com"]
[Source "ChessBase"]
[SourceQuality "1"]
[TimeControl "40/5400+30:1800+30"]

{[%evp 14,67,17,25,33,29,27,34,91,31,34,7,12,4,17,0,18,12,41,43,98,93,96,87,81,62,62,57,55,66,82,75,91,86,82,91,116,46,81,76,170,172,278,246,236,243,233,225,511,504,500,495,693,682,660,639]} 1. c4 {[%emt 0:00:18]} e5 {[%emt 0:00:11]} 2. Nc3 {[%emt 0:00:09]} Nf6 {[%emt 0:00:15]} 3. Nf3 {[%emt 0:00:09]} Nc6 {[%emt 0:00:10]} 4. e3 {[%emt 0:00:16]} d5 {[%emt 0:01:00]} 5. cxd5 {[%emt 0:00:06]} Nxd5 {[%emt 0:00:02]} 6. Bb5 {[%emt 0:00:09]} Nxc3 {[%emt 0:00:08]} 7. bxc3 {[%emt 0:00:09]} Bd6 {[%emt 0:00:11]} 8. d4 {[%emt 0:00:17]} e4 {[%emt 0:00:12] Recently 8...Bd7 got a lot of attention. A28: English Opening: Four Knights Variation.} 9. Nd2 {[%emt 0:00:13]} Qg5 {[%emt 0:00:07][%csl LRb5,LRg2]} 10. Bf1 {[%emt 0:00:07]} Qe7 {[%emt 0:05:11]} ({Black should play} 10... Qg6 $14) 11. Qc2 {[%emt 0:03:40] [#]} (11. d5 $16) 11... f5 $146 {[%emt 0:04:25]} ({Predecessor:} 11... Bf5 12. Rb1 Nd8 13. f4 O-O 14. Be2 Re8 15. O-O Qh4 16. Rb5 c5 17. Nc4 Bf8 {1-0 (27) Leontiev,A (2285)-Pavlova,N (1990) St Petersburg 2016}) 12. Be2 {[%emt 0:08:51]} O-O {[%emt 0:00:24]} 13. Nc4 {[%emt 0:03:07]} b6 {[%emt 0:09:01]} 14. f4 {[%emt 0:06:14]} exf3 {[%emt 0:11:06]} 15. Bxf3 {[%emt 0:00:17]} Bd7 {[%emt 0:05:23]} 16. O-O {[%emt 0:01:21]} Qh4 {[%emt 0:14:22]} ({Black should try} 16... Rae8 $14) 17. Nxd6 {[%emt 0:01:37]} cxd6 {[%emt 0:00:04]} 18. Ba3 {[%emt 0:06:23]} Rf6 {[%emt 0:01:36]} 19. Qf2 {[%emt 0:09:57]} Qxf2+ {[%emt 0:06:35]} 20. Rxf2 {[%emt 0:00:29]} Rc8 {[%emt 0:00:24]} 21. e4 {[%emt 0:07:18]} Na5 {[%emt 0:09:07]} 22. e5 {[%emt 0:02:04]} dxe5 {[%emt 0:00:10]} 23. dxe5 {[%emt 0:00:08]} Rg6 {[%emt 0:00:15]} 24. Rd1 $1 {[%emt 0:05:32]} Be6 {[%emt 0:09:17] [#]} 25. Rd6 {[%emt 0:06:05]} (25. Rfd2 $1 $16 {[%cal Rd2d8] Strongly threatening Rd8+.} Nc4 26. Rd8+ Kf7 27. Rxc8 Bxc8 28. Bb4 (28. Bd5+ Be6 $11)) 25... Bf7 {[%emt 0:08:15]} (25... Nc4 $2 {[#]} 26. Rxe6 $1 Rxe6 27. Bd5 $18) 26. Rd7 {[%emt 0:07:52]} a6 {[%emt 0:03:05]} (26... Be6 $16 {keeps fighting.} 27. Rxa7 Nc6 28. Bxc6 Rxc6) 27. Rfd2 $18 {[%emt 0:02:50] White wants to mate with Rd8+.} h6 {[%emt 0:06:51]} (27... Re8 {might work better.} 28. Rc7 (28. Bh5 Nc4 $11) 28... b5) 28. Rd8+ {[%emt 0:01:24]} Rxd8 {[%emt 0:00:08]} 29. Rxd8+ {[%emt 0:00:05]} Kh7 {[%emt 0:00:07]} 30. Bh5 {[%emt 0:00:23]} Rxg2+ {[%emt 0:01:31]} (30... Nc4 31. Bxg6+ Kxg6) 31. Kxg2 {[%emt 0:00:06] White is clearly winning.} Bxh5 {[%emt 0:00:04]} 32. e6 {[%emt 0:00:29][%cal Be5e6,Be6e7][%mdl 32] Against Bf7} Nc4 {[%emt 0:00:20]} 33. Bc1 {[%emt 0:00:29]} Ne5 {[%emt 0:01:06]} 34. e7 {[%emt 0:00:21] Weighted Error Value: White=0.13 (very precise) /Black=0.40} 1-0

[Event "58th Akiba Rubinstein B 2022"]
[Site "Polanica-Zdroj"]
[Date "2022.08.14"]
[Round "2.2"]
[White "Szydelko, Michal"]
[Black "Zerebiec, Maurycy"]
[Result "0-1"]
[ECO "C15"]
[WhiteElo "1833"]
[BlackElo "1915"]
[Annotator "NA RC"]
[PlyCount "94"]
[EventDate "2022.08.13"]
[EventCountry "POL"]
[SourceTitle "playchess.com"]
[Source "ChessBase"]
[SourceQuality "1"]
[TimeControl "40/5400+30:1800+30"]

1. e4 {[%emt 0:00:03]} e6 {[%emt 0:00:33]} 2. d4 {[%emt 0:00:10]} d5 {[%emt 0:00:02]} 3. Nc3 {[%emt 0:01:01]} Bb4 {[%emt 0:00:04]} 4. exd5 {[%emt 0:00:11]} exd5 {[%emt 0:00:15]} 5. Bd3 {[%emt 0:00:16]} Nf6 {[%emt 0:00:31]} 6. Nf3 {[%emt 0:00:50]} O-O {[%emt 0:00:16]} 7. O-O {[%emt 0:00:07]} Bg4 {[%emt 0:02:46]} 8. h3 {[%emt 0:00:46]} Bh5 {[%emt 0:00:11]} 9. Bg5 {[%emt 0:00:17]} Bxc3 {[%emt 0:00:27]} 10. bxc3 {[%emt 0:00:10]} Nbd7 {[%emt 0:01:29]} 11. Re1 Re8 {[%emt 0:08:38]} 12. Be2 {[%emt 0:13:19]} h6 {[%emt 0:03:29]} 13. Bxf6 {[%emt 0:07:29]} Qxf6 {[%emt 0:00:54]} 14. Ne5 {[%emt 0:07:27]} Nxe5 {[%emt 0:02:07]} 15. Bxh5 {[%emt 0:03:09]} Nc4 {[%emt 0:00:31]} 16. Bf3 {[%emt 0:01:13]} c6 {[%emt 0:00:30]} 17. Rb1 {[%emt 0:01:11]} b5 {[%emt 0:01:03]} 18. Qd3 {[%emt 0:08:19]} Re7 {[%emt 0:04:52]} 19. Re2 {[%emt 0:19:20]} Rae8 {[%emt 0:02:06]} 20. Rbe1 {[%emt 0:00:22]} Rxe2 {[%emt 0:02:25]} 21. Rxe2 {[%emt 0:00:30]} Rxe2 {[%emt 0:00:02]} 22. Qxe2 {[%emt 0:00:23]} Qe6 {[%emt 0:00:25]} 23. Kf1 {[%emt 0:01:08]} Qxe2+ {[%emt 0:02:28]} 24. Kxe2 {[%emt 0:00:15]} Kf8 {[%emt 0:00:14]} 25. Kd3 {[%emt 0:06:34]} Ke7 {[%emt 0:01:28]} 26. Bg4 {[%emt 0:01:02]} Kd6 {[%emt 0:00:13]} 27. Bf3 {[%emt 0:00:42]} g6 {[%emt 0:00:57]} 28. Be2 {[%emt 0:02:12]} Ke6 {[%emt 0:01:10]} 29. Bg4+ {[%emt 0:04:34]} f5 {[%emt 0:00:02]} 30. Be2 {[%emt 0:00:13]} Kf6 {[%emt 0:00:46]} 31. f4 {[%emt 0:01:05]} h5 {[%emt 0:01:54]} 32. Bf3 {[%emt 0:07:58]} Nd6 {[%emt 0:00:21]} 33. Ke3 {[%emt 0:05:07]} Ne4 {[%emt 0:02:52]} 34. Kd3 {[%emt 0:00:20]} h4 {[%emt 0:00:39]} 35. Be2 {[%emt 0:04:33]} Ke6 {[%emt 0:00:16]} 36. Bf3 {[%emt 0:00:48]} Kd6 {[%emt 0:00:09]} 37. Be2 {[%emt 0:01:08]} Kc7 {[%emt 0:00:08]} 38. Bf3 {[%emt 0:00:12]} Kb6 {[%emt 0:00:13]} 39. Ke3 {[%emt 0:00:28]} Nxc3 {[%emt 0:00:24]} 40. g4 {[%emt 0:00:00]} hxg3 {[%emt 0:00:00]} 41. h4 {[%emt 0:00:15]} Ne4 {[%emt 0:01:17]} 42. Bg2 {[%emt 0:00:15]} Nf6 {[%emt 0:00:53]} 43. Kf3 {[%emt 0:00:39]} Nh5 {[%emt 0:00:02]} 44. Bf1 {[%emt 0:00:13]} Ka5 {[%emt 0:00:08]} 45. Bd3 {[%emt 0:01:45]} Kb4 {[%emt 0:00:11]} 46. Ke3 {[%emt 0:00:12]} Ka3 {[%emt 0:01:03]} 47. Be2 {[%emt 0:00:22]} Kxa2 {[%emt 0:00:13]} 0-1

[Event "58th Akiba Rubinstein B 2022"]
[Site "Polanica-Zdroj"]
[Date "2022.08.14"]
[Round "2.3"]
[White "Mielczarek, Daniel"]
[Black "Turek, Michal"]
[Result "1/2-1/2"]
[ECO "D03"]
[WhiteElo "1912"]
[BlackElo "1681"]
[Annotator "NA RC"]
[PlyCount "110"]
[EventDate "2022.08.13"]
[EventCountry "POL"]
[SourceTitle "playchess.com"]
[Source "ChessBase"]
[SourceQuality "1"]
[TimeControl "40/5400+30:1800+30"]

1. Nf3 {[%emt 0:00:15]} d5 {[%emt 0:00:11]} 2. d4 {[%emt 0:00:09]} Nf6 {[%emt 0:00:09]} 3. Bg5 {[%emt 0:00:41]} Ne4 {[%emt 0:00:13]} 4. Bh4 {[%emt 0:00:23]} h5 {[%emt 0:00:09]} 5. Nfd2 {[%emt 0:07:15]} g5 {[%emt 0:00:52]} 6. Nxe4 {[%emt 0:01:13]} gxh4 {[%emt 0:00:06]} 7. Nec3 {[%emt 0:01:00]} h3 {[%emt 0:01:27]} 8. gxh3 Bf5 {[%emt 0:13:01]} 9. Nd2 {[%emt 0:18:10]} Nc6 {[%emt 0:02:09]} 10. Nb3 {[%emt 0:07:20]} e6 {[%emt 0:05:06]} 11. a3 {[%emt 0:09:57]} Qh4 {[%emt 0:03:21]} 12. e3 {[%emt 0:01:11]} O-O-O {[%emt 0:06:55]} 13. Qe2 {[%emt 0:04:29]} Rg8 {[%emt 0:06:11]} 14. O-O-O {[%emt 0:06:19]} Be7 {[%emt 0:15:37]} 15. Nd2 {[%emt 0:06:58]} Bxh3 {[%emt 0:16:16]} 16. Bxh3 {[%emt 0:03:24]} Qxh3 {[%emt 0:00:07]} 17. Qf3 {[%emt 0:00:37]} Qxf3 {[%emt 0:00:54]} 18. Nxf3 {[%emt 0:00:02]} Rg2 {[%emt 0:01:22]} 19. Rdf1 {[%emt 0:00:39]} h4 {[%emt 0:17:06]} 20. h3 {[%emt 0:05:36]} Bf6 {[%emt 0:02:05]} 21. Rhg1 {[%emt 0:06:24]} Rdg8 {[%emt 0:00:31]} 22. Rxg2 {[%emt 0:00:44]} Rxg2 {[%emt 0:00:02]} 23. Kd2 {[%emt 0:03:07]} Ne7 {[%emt 0:01:18]} 24. Ke1 {[%emt 0:01:45]} Nf5 {[%emt 0:01:06]} 25. Rg1 {[%emt 0:01:48]} Rxg1+ {[%emt 0:01:10]} 26. Nxg1 {[%emt 0:00:02]} b6 {[%emt 0:01:23]} 27. Nce2 {[%emt 0:00:39]} c5 {[%emt 0:00:20]} 28. c3 {[%emt 0:00:35]} Nd6 {[%emt 0:00:28]} 29. a4 {[%emt 0:05:00]} a6 {[%emt 0:02:15]} 30. Nf3 {[%emt 0:01:37]} Nc4 {[%emt 0:00:30]} 31. b3 {[%emt 0:00:42]} Na5 {[%emt 0:00:10]} 32. Nc1 {[%emt 0:01:04]} Kd7 {[%emt 0:01:05]} 33. Kd2 {[%emt 0:00:18]} c4 {[%emt 0:00:25]} 34. b4 {[%emt 0:00:47]} Nb7 {[%emt 0:00:22]} 35. Ne5+ {[%emt 0:01:06]} Ke7 {[%emt 0:01:21]} 36. Ne2 {[%emt 0:00:48]} Nd6 {[%emt 0:00:40]} 37. f3 {[%emt 0:02:00]} Bg5 {[%emt 0:00:52]} 38. Ng1 {[%emt 0:02:24]} Nf5 {[%emt 0:00:39]} 39. Ng4 {[%emt 0:00:41]} Ng3 {[%emt 0:00:32]} 40. f4 {[%emt 0:00:00]} Bf6 {[%emt 0:00:00]} 41. Nf3 {[%emt 0:04:35]} Nf5 {[%emt 0:05:20]} 42. Nxf6 {[%emt 0:02:23]} Kxf6 {[%emt 0:00:03]} 43. Ne5 {[%emt 0:00:17]} Ke7 {[%emt 0:01:13]} 44. e4 {[%emt 0:12:56]} Nd6 {[%emt 0:02:22]} 45. exd5 {[%emt 0:02:38]} exd5 {[%emt 0:00:03]} 46. Nc6+ {[%emt 0:01:40]} Ke6 {[%emt 0:09:29]} 47. Nb8 {[%emt 0:00:37]} Ne4+ {[%emt 0:00:09]} 48. Kc2 {[%emt 0:02:03]} a5 {[%emt 0:00:47]} 49. bxa5 {[%emt 0:00:48]} bxa5 {[%emt 0:00:05]} 50. Nc6 {[%emt 0:00:38]} Nf2 {[%emt 0:00:32]} 51. Kd2 {[%emt 0:01:16]} Nxh3 {[%emt 0:05:11]} 52. Ke3 {[%emt 0:00:27]} Kf5 {[%emt 0:03:15]} 53. Ne7+ {[%emt 0:01:21]} Ke6 {[%emt 0:01:20]} 54. Nc6 {[%emt 0:00:07]} Kf5 {[%emt 0:02:31]} 55. Ne7+ {[%emt 0:00:09]} Ke6 {[%emt 0:04:27]} 1/2-1/2

[Event "58th Akiba Rubinstein B 2022"]
[Site "Polanica-Zdroj"]
[Date "2022.08.14"]
[Round "2.4"]
[White "Trusz, Julia"]
[Black "Twardowski, Hubert"]
[Result "1-0"]
[ECO "A40"]
[WhiteElo "1706"]
[BlackElo "1849"]
[Annotator "NA RC"]
[PlyCount "121"]
[EventDate "2022.08.13"]
[EventCountry "POL"]
[SourceTitle "playchess.com"]
[Source "ChessBase"]
[SourceQuality "1"]
[TimeControl "40/5400+30:1800+30"]

1. d4 {[%emt 0:00:08]} Nf6 {[%emt 0:00:42]} 2. c4 {[%emt 0:00:32]} e6 {[%emt 0:00:43]} 3. g3 {[%emt 0:01:27]} c5 {[%emt 0:03:53]} 4. Nf3 {[%emt 0:03:38]} cxd4 {[%emt 0:00:45]} 5. Nxd4 {[%emt 0:03:01]} d5 {[%emt 0:05:38]} 6. Bg2 {[%emt 0:02:58]} e5 {[%emt 0:06:39]} 7. Nf3 {[%emt 0:01:02]} d4 {[%emt 0:00:28]} 8. O-O {[%emt 0:00:23]} Nc6 {[%emt 0:00:10]} 9. e3 {[%emt 0:01:20]} Be7 {[%emt 0:04:23]} 10. exd4 {[%emt 0:02:44]} exd4 {[%emt 0:01:13]} 11. Bf4 {[%emt 0:04:05]} Be6 {[%emt 0:00:36]} 12. Nbd2 {[%emt 0:18:01]} O-O {[%emt 0:03:52]} 13. Qb3 {[%emt 0:12:45]} Rc8 {[%emt 0:41:47]} 14. Qd3 {[%emt 0:27:06]} Qb6 {[%emt 0:01:28]} 15. Ng5 {[%emt 0:08:05]} Nb4 {[%emt 0:07:59]} 16. Qb3 {[%emt 0:02:48]} Bf5 {[%emt 0:00:13]} 17. a3 {[%emt 0:01:18]} Bc2 {[%emt 0:05:59]} 18. Qf3 {[%emt 0:00:11]} Nc6 {[%emt 0:00:06]} 19. b4 {[%emt 0:02:01]} h6 {[%emt 0:02:32]} 20. Nge4 {[%emt 0:02:38]} Nxe4 {[%emt 0:00:25]} 21. Nxe4 {[%emt 0:00:05]} g5 {[%emt 0:03:18]} 22. c5 {[%emt 0:01:05]} Qd8 {[%emt 0:01:13]} 23. Bd6 {[%emt 0:00:30]} Bxe4 {[%emt 0:02:24]} 24. Qxe4 {[%emt 0:00:48]} Bxd6 {[%emt 0:00:03]} 25. cxd6 {[%emt 0:00:22]} Qxd6 {[%emt 0:00:01]} 26. b5 {[%emt 0:02:06]} Rfe8 {[%emt 0:00:34]} 27. Qf5 {[%emt 0:01:06]} Ne7 {[%emt 0:02:20]} 28. Qe4 {[%emt 0:00:11]} Nc6 {[%emt 0:01:01]} 29. Qf5 {[%emt 0:00:19]} Na5 {[%emt 0:00:01]} 30. Be4 {[%emt 0:00:29]} Qe5 {[%emt 0:02:39]} 31. Qh7+ {[%emt 0:00:50]} Kf8 {[%emt 0:00:01]} 32. Qxh6+ {[%emt 0:00:01]} Qg7 {[%emt 0:00:16]} 33. Qd6+ {[%emt 0:00:55]} Kg8 {[%emt 0:00:04]} 34. Rfe1 {[%emt 0:00:50]} Nc4 {[%emt 0:02:38]} 35. Qb4 {[%emt 0:00:14]} b6 {[%emt 0:00:34]} 36. Bf5 {[%emt 0:00:40]} Ne5 {[%emt 0:01:00]} 37. Kg2 {[%emt 0:01:36]} Rcd8 {[%emt 0:00:07]} 38. Rad1 {[%emt 0:00:20]} Qf6 {[%emt 0:00:59]} 39. Be4 {[%emt 0:00:11]} g4 {[%emt 0:00:39]} 40. Qb3 {[%emt 0:00:00]} d3 {[%emt 0:00:00]} 41. Re3 {[%emt 0:08:38]} Qh6 {[%emt 0:15:42]} 42. Qc3 {[%emt 0:15:10]} Nf3 {[%emt 0:06:32]} 43. h4 {[%emt 0:05:33]} d2 {[%emt 0:09:21]} 44. Qc7 {[%emt 0:03:35]} Rc8 {[%emt 0:00:35]} 45. Qd7 {[%emt 0:00:25]} Ne5 {[%emt 0:00:45]} 46. Qf5 {[%emt 0:00:23]} Rcd8 {[%emt 0:00:27]} 47. Bc2 {[%emt 0:00:53]} Ng6 {[%emt 0:00:40]} 48. Rxe8+ {[%emt 0:00:20]} Rxe8 {[%emt 0:00:01]} 49. Qxg4 {[%emt 0:00:22]} Re5 {[%emt 0:00:59]} 50. Bxg6 {[%emt 0:00:42]} Qxg6 {[%emt 0:00:25]} 51. Qxg6+ {[%emt 0:00:18]} fxg6 {[%emt 0:00:02]} 52. Rxd2 {[%emt 0:00:10]} Rxb5 {[%emt 0:00:12]} 53. Rd8+ {[%emt 0:00:08]} Kf7 {[%emt 0:00:03]} 54. Rd7+ {[%emt 0:00:03]} Kf6 {[%emt 0:00:05]} 55. Rxa7 {[%emt 0:00:04]} Rb2 {[%emt 0:00:17]} 56. g4 {[%emt 0:00:54]} b5 {[%emt 0:00:12]} 57. Ra6+ {[%emt 0:00:28]} Kf7 {[%emt 0:00:36]} 58. Kg3 {[%emt 0:01:10]} Ra2 {[%emt 0:00:05]} 59. Ra5 {[%emt 0:00:16]} Rb2 {[%emt 0:00:02]} 60. f3 {[%emt 0:00:40]} Rb1 {[%emt 0:02:57]} 61. Kf4 {[%emt 0:00:25]} 1-0

[Event "58th Akiba Rubinstein B 2022"]
[Site "Polanica-Zdroj"]
[Date "2022.08.14"]
[Round "2.5"]
[White "Smukowski, Bartosz"]
[Black "Rogala, Milosz"]
[Result "1/2-1/2"]
[ECO "D44"]
[WhiteElo "1696"]
[BlackElo "1837"]
[Annotator "NA RC"]
[PlyCount "80"]
[EventDate "2022.08.13"]
[EventCountry "POL"]
[SourceTitle "playchess.com"]
[Source "ChessBase"]
[SourceQuality "1"]
[TimeControl "40/5400+30:1800+30"]

1. d4 {[%emt 0:00:01]} d5 {[%emt 0:00:41]} 2. c4 {[%emt 0:00:34]} c6 {[%emt 0:00:07]} 3. Nc3 {[%emt 0:00:35]} Nf6 {[%emt 0:00:17]} 4. Nf3 {[%emt 0:02:46]} e6 {[%emt 0:00:07]} 5. Bg5 {[%emt 0:01:57]} dxc4 {[%emt 0:00:13]} 6. e4 {[%emt 0:01:51]} b5 {[%emt 0:00:04]} 7. e5 {[%emt 0:07:14]} h6 {[%emt 0:00:06]} 8. Bd2 {[%emt 0:02:08]} Nd5 {[%emt 0:02:50]} 9. Be2 {[%emt 0:07:35]} Nd7 {[%emt 0:03:44]} 10. O-O {[%emt 0:03:25]} Nxc3 {[%emt 0:03:35]} 11. Bxc3 {[%emt 0:02:27]} Nb6 {[%emt 0:00:20]} 12. b4 {[%emt 0:03:24]} Nd5 {[%emt 0:01:19]} 13. Qd2 {[%emt 0:00:05]} a5 {[%emt 0:01:55]} 14. a3 {[%emt 0:02:02]} axb4 {[%emt 0:05:10]} 15. axb4 {[%emt 0:00:25]} Rxa1 {[%emt 0:01:29]} 16. Rxa1 {[%emt 0:00:18]} Be7 {[%emt 0:00:05]} 17. g3 {[%emt 0:02:21]} O-O {[%emt 0:00:34]} 18. Ne1 {[%emt 0:03:15]} Qb6 {[%emt 0:02:56]} 19. Bf3 {[%emt 0:01:03]} Bb7 {[%emt 0:04:28]} 20. Bxd5 {[%emt 0:02:37]} exd5 {[%emt 0:00:18]} 21. Qa2 {[%emt 0:01:59]} Ra8 {[%emt 0:05:39]} 22. Qb2 {[%emt 0:00:43]} Ra6 {[%emt 0:01:14]} 23. Rxa6 {[%emt 0:08:29]} Qxa6 {[%emt 0:00:48]} 24. Kg2 {[%emt 0:04:38]} Qa4 {[%emt 0:00:40]} 25. f3 {[%emt 0:04:56]} Bc8 {[%emt 0:02:00]} 26. Qd2 {[%emt 0:11:33]} Bf5 {[%emt 0:03:25]} 27. h4 {[%emt 0:01:53]} Qb3 {[%emt 0:02:12]} 28. g4 {[%emt 0:07:43]} Bb1 {[%emt 0:00:48]} 29. Kg3 {[%emt 0:00:43]} Kh7 30. Ng2 {[%emt 0:00:55]} Qc2 {[%emt 0:18:16]} 31. Qxc2+ {[%emt 0:01:11]} Bxc2 {[%emt 0:01:18]} 32. Ne3 {[%emt 0:00:35]} Bd3 {[%emt 0:00:44]} 33. f4 {[%emt 0:00:48]} h5 {[%emt 0:05:26]} 34. f5 {[%emt 0:12:18]} hxg4 {[%emt 0:08:06]} 35. Kxg4 {[%emt 0:00:54]} Be2+ {[%emt 0:00:16]} 36. Kg3 {[%emt 0:00:18]} Bd3 {[%emt 0:01:17]} 37. Bd2 {[%emt 0:00:34]} Bd8 {[%emt 0:01:01]} 38. Kg4 {[%emt 0:02:14]} Be2+ {[%emt 0:02:40]} 39. Kg3 {[%emt 0:00:02]} Bd3 {[%emt 0:00:50]} 40. Kg4 {[%emt 0:00:00]} Be2+ {[%emt 0:00:00]} 1/2-1/2

[Event "58th Akiba Rubinstein B 2022"]
[Site "Polanica-Zdroj"]
[Date "2022.08.14"]
[Round "2.6"]
[White "Szuber, Dawid"]
[Black "Kowalczyk, Wojciech"]
[Result "1/2-1/2"]
[ECO "B76"]
[WhiteElo "1484"]
[BlackElo "1835"]
[Annotator "NA RC"]
[PlyCount "30"]
[EventDate "2022.08.13"]
[EventCountry "POL"]
[SourceTitle "playchess.com"]
[Source "ChessBase"]
[SourceQuality "1"]
[TimeControl "40/5400+30:1800+30"]

1. e4 c5 2. Nf3 d6 3. d4 cxd4 4. Nxd4 Nf6 5. Nc3 g6 6. Be3 Bg7 7. f3 O-O 8. Qd2 Nc6 9. g4 Be6 10. Nxe6 fxe6 11. O-O-O Ne5 12. Be2 Qc8 13. Bd4 Nc6 14. Be3 Ne5 15. Bd4 Nc6 1/2-1/2